bitfinex-derivatives/quotes_BTCF0:USTF0_20230401
["timestamp","ask_amount","ask_price","bid_price","bid_amount"]
[1680313678923,0.05,28508.0,28506.0,0.002]
[1680313679319,0.05,28508.0,28505.0,0.0892]
[1680313679720,0.4377,28509.0,28505.0,0.0872]
[1680313679921,0.4377,28509.0,28506.0,0.002]
[1680313680122,0.05,28508.0,28506.0,0.002]
[1680313680529,0.3877,28509.0,28506.0,0.002]
[1680313680725,0.05,28508.0,28506.0,0.002]
[1680313681425,0.05,28508.0,28505.0,0.0892]
[1680313681820,0.05,28508.0,28505.0,0.0872]
[1680313682022,0.05,28508.0,28506.0,0.002]
[1680313682728,0.05,28508.0,28505.0,0.0892]
[1680313684030,0.05,28508.0,28506.0,0.002]
[1680313684424,0.05,28508.0,28505.0,0.0892]
[1680313684728,0.087,28509.0,28505.0,0.0892]
[1680313684930,0.05,28510.0,28508.0,0.0874]
[1680313685133,0.05,28510.0,28509.0,0.0877]
[1680313686030,0.3507,28511.0,28509.0,0.0877]
[1680313686727,0.3507,28511.0,28510.0,0.00743615]
[1680313687123,0.3507,28511.0,28509.0,0.0877]
[1680313687420,0.3507,28511.0,28510.0,0.002]
[1680313687626,0.3507,28511.0,28510.0,0.00943605]
[1680313687927,0.3507,28511.0,28508.0,0.0877]
[1680313688127,0.3507,28511.0,28509.0,0.002]
[1680313688331,0.3507,28511.0,28509.0,0.00943606]
[1680313689437,0.3507,28511.0,28510.0,0.002]
[1680313689624,0.3507,28511.0,28509.0,0.00943606]
[1680313689824,0.3507,28511.0,28509.0,0.002]
[1680313690025,0.3507,28511.0,28510.0,0.00743604]
[1680313690224,0.3507,28511.0,28509.0,0.002]
[1680313690724,0.3507,28511.0,28510.0,0.00743603]
[1680313691031,0.3507,28511.0,28508.0,0.0877]
[1680313691232,0.3507,28511.0,28509.0,0.002]
[1680313691637,0.3507,28511.0,28510.0,0.00743603]
[1680313692133,0.3507,28511.0,28509.0,0.002]
[1680313692323,0.3507,28511.0,28510.0,0.002]
[1680313697944,0.3007,28511.0,28510.0,0.002]
[1680313698339,0.3007,28511.0,28510.0,0.009436]
[1680313700225,0.3007,28511.0,28510.0,0.096936]
[1680313702332,0.46823689,28519.0,28511.0,0.3336]
[1680313702537,0.3007,28519.0,28518.0,0.0877]
[1680313703134,0.3882,28522.0,28518.0,0.0877]
[1680313703333,0.51012028,28526.0,28521.0,0.0877]
[1680313703334,0.3007,28526.0,28521.0,0.0877]
[1680313703531,0.3507,28526.0,28525.0,0.0871]
[1680313703725,0.3007,28526.0,28525.0,0.0871]
[1680313704127,0.3007,28526.0,28525.0,0.09675774]
[1680313704334,0.3884,28529.0,28525.0,0.09675774]
[1680313704530,0.05,28528.0,28525.0,0.09675774]
[1680313704732,0.05,28528.0,28527.0,0.087]
[1680313705236,0.3007,28529.0,28527.0,0.09641849]
[1680313705446,0.3007,28529.0,28528.0,0.0877]
[1680313706528,0.05,28528.0,28527.0,0.09911849]
[1680313707135,0.05,28528.0,28527.0,0.09711849]
[1680313707340,0.05,28528.0,28527.0,0.00941849]
[1680313707938,0.05,28528.0,28527.0,0.01141849]
[1680313709246,0.3007,28529.0,28527.0,0.09851849]
[1680313709543,0.3007,28529.0,28528.0,0.0875]
[1680313710542,0.3007,28529.0,28528.0,0.1752]
[1680313710842,0.3007,28532.0,28528.0,1.00911837]
[1680313711044,0.09363689,28536.0,28531.0,0.3791]
[1680313711244,0.09363689,28536.0,28532.0,0.0877]
[1680313711441,0.00593689,28536.0,28535.0,0.0875]
[1680313711642,0.05,28537.0,28535.0,0.0875]
[1680313712341,0.05,28538.0,28535.0,0.0875]
[1680313712640,0.137,28539.0,28535.0,0.0875]
[1680313712839,0.05,28539.0,28537.0,0.0877]
[1680313713046,0.05,28540.0,28537.0,0.0877]
[1680313713438,0.0876,28538.0,28534.0,0.3881]
[1680313713646,0.0876,28538.0,28535.0,0.002]
[1680313713846,0.05,28537.0,28535.0,0.002]
[1680313714144,0.05,28537.0,28534.0,0.3881]
[1680313714341,0.05,28537.0,28536.0,0.0875]
[1680313714545,0.05,28537.0,28534.0,0.6884]
[1680313715942,0.137,28540.0,28536.0,0.0872]
[1680313716139,0.137,28540.0,28538.0,0.3007]
[1680313716343,0.0876,28539.0,28535.0,0.002]
[1680313716645,0.0875,28537.0,28534.0,0.3027]
[1680313716848,0.05,28536.0,28534.0,0.3027]
[1680313717549,0.05,28536.0,28534.0,0.3007]
[1680313718148,0.0875,28537.0,28534.0,0.3007]
[1680313719049,0.0875,28537.0,28534.0,0.3027]
[1680313720144,0.0875,28537.0,28536.0,0.0875]
[1680313720460,0.12218072,28544.0,28537.0,0.0877]
[1680313720654,0.6049,28548.0,28543.0,0.0872]
[1680313720849,0.05,28547.0,28543.0,0.0872]
[1680313721046,0.137,28547.0,28543.0,0.0872]
[1680313721849,0.137,28547.0,28543.0,0.0892]
[1680313722250,0.087,28547.0,28543.0,0.0892]
[1680313722559,0.1376,28550.0,28545.0,0.0877]
[1680313722852,0.087,28547.0,28543.0,0.002]
[1680313723048,0.0877,28542.0,28538.0,0.3007]
[1680313723247,0.05,28538.0,28535.0,0.30820331]
[1680313723446,0.05,28538.0,28535.0,0.39530331]
[1680313723949,0.0877,28539.0,28535.0,0.39530331]
[1680313724254,0.0877,28539.0,28536.0,0.52881953]
[1680313724443,0.05,28543.0,28538.0,0.3877]
[1680313724444,0.0875,28543.0,28538.0,0.3877]
[1680313724749,0.0875,28543.0,28541.0,0.3007]
[1680313725651,0.002,28543.0,28542.0,0.0871]
[1680313726954,0.002,28543.0,28542.0,0.0891]
[1680313727155,0.002,28543.0,28542.0,0.002]
[1680313727946,0.002,28543.0,28542.0,0.3897]
[1680313730957,0.002,28543.0,28542.0,0.91189785]
[1680313731258,0.002,28543.0,28542.0,0.91229785]
[1680313731454,0.002,28543.0,28542.0,0.3901]
[1680313734351,0.002,28543.0,28537.0,0.0871]
[1680313734352,0.0877,28542.0,28537.0,0.3007]
[1680313734556,0.0876,28540.0,28537.0,0.3007]
[1680313734755,0.05,28539.0,28537.0,0.3007]
[1680313734957,0.087,28538.0,28537.0,0.3007]
[1680313735353,0.087,28538.0,28537.0,0.30731946]
[1680313735748,0.087,28538.0,28537.0,0.00661946]
[1680313736056,0.087,28538.0,28536.0,0.3007]
[1680313736257,0.1375,28537.0,28536.0,0.3007]
[1680313738462,0.1645,28537.0,28536.0,0.3017]
[1680313739956,0.1145,28537.0,28536.0,0.3017]
[1680313742067,0.1145,28537.0,28536.0,0.6024]
[1680313746067,0.027,28537.0,28536.0,0.6895]
[1680313746655,0.027,28537.0,28536.0,0.6894]
[1680313746860,0.027,28537.0,28536.0,1.2174075]
[1680313747060,0.00937282,28537.0,28536.0,1.2174075]
[1680313747561,7.282e-05,28537.0,28536.0,1.2174075]
[1680313747763,0.0875,28543.0,28537.0,0.05]
[1680313748064,0.0875,28543.0,28542.0,0.6014]
[1680313748672,0.0877,28546.0,28542.0,0.6891]
[1680313748971,0.0877,28546.0,28545.0,0.3007]
[1680313749671,0.0871,28548.0,28545.0,0.3007]
[1680313750269,0.0871,28548.0,28545.0,0.3027]
[1680313750474,0.0871,28548.0,28546.0,0.00621702]
[1680313752377,0.0891,28548.0,28546.0,0.00821702]
[1680313755973,0.0891,28548.0,28546.0,0.00621702]
[1680313755974,0.0871,28548.0,28546.0,0.00621702]
[1680313756176,0.0891,28548.0,28546.0,0.00821702]
[1680313757178,0.087,28547.0,28546.0,0.00821702]
[1680313757979,0.087,28547.0,28546.0,0.00621702]
[1680313758181,0.089,28547.0,28546.0,0.00821702]
[1680313762582,0.002,28547.0,28546.0,0.09591702]
[1680313762895,0.002,28547.0,28546.0,0.14591702]
[1680313763977,0.002,28547.0,28546.0,0.67466559]
[1680313764585,0.0877,28551.0,28546.0,0.67266559]
[1680313764890,0.002,28547.0,28546.0,0.67466559]
[1680313765185,0.002,28547.0,28546.0,1.27606559]
[1680313765388,0.00156165,28547.0,28546.0,1.22606559]
[1680313765587,0.0897,28551.0,28546.0,1.22606559]
[1680313765788,0.0897,28551.0,28550.0,0.3007]
[1680313767188,0.002,28551.0,28550.0,0.3007]
[1680313767393,0.0876,28554.0,28550.0,0.3882]
[1680313767587,0.0876,28557.0,28553.0,0.3877]
[1680313767787,0.20942028,28560.0,28556.0,0.3884]
[1680313767788,0.05,28560.0,28556.0,0.3884]
[1680313767987,0.05,28560.0,28559.0,0.3007]
[1680313768192,0.0871,28560.0,28559.0,0.3007]
[1680313768586,0.0877,28560.0,28559.0,0.3007]
[1680313768983,0.0897,28560.0,28559.0,0.3027]
[1680313769187,0.37029127,28559.0,28549.0,0.6922]
[1680313769393,0.0875,28550.0,28544.0,0.3007]
[1680313769693,0.08730951,28547.0,28544.0,0.3007]
[1680313771187,0.08730951,28547.0,28545.0,0.52610629]
[1680313771588,0.09330951,28547.0,28545.0,0.52610629]
[1680313771988,0.09330951,28547.0,28545.0,0.52810629]
[1680313773193,0.09293667,28547.0,28546.0,0.00582565]
[1680313773494,0.0925986,28547.0,28546.0,0.00582565]
[1680313773695,0.09221996,28547.0,28546.0,0.00582565]
[1680313773993,0.08992126,28547.0,28546.0,0.00782565]
[1680313774186,0.08956941,28547.0,28546.0,0.00782565]
[1680313774386,0.0892175,28547.0,28546.0,0.00782565]
[1680313776391,0.0892175,28547.0,28546.0,0.00513369]
[1680313781796,0.0892175,28547.0,28546.0,0.002]
[1680313781999,0.1769175,28547.0,28538.0,1.0901]
[1680313782197,0.0877,28540.0,28538.0,1.0901]
[1680313782395,0.0892175,28547.0,28534.0,0.3680717]
[1680313782396,0.0877,28542.0,28539.0,0.30325169]
[1680313782594,0.05,28541.0,28539.0,0.00255169]
[1680313782802,0.05,28541.0,28534.0,0.3007]
[1680313782993,0.0877,28537.0,28534.0,0.3007]
[1680313784304,0.0977,28537.0,28534.0,0.3007]
[1680313787306,0.087,28535.0,28534.0,0.3007]
[1680313788101,0.001,28535.0,28534.0,0.3047]
[1680313788599,0.087,28540.0,28535.0,0.05]
[1680313788803,0.087,28540.0,28539.0,0.6014]
[1680313789606,0.114,28540.0,28539.0,0.6024]
[1680313796014,0.114,28540.0,28539.0,0.3017]
[1680313805013,0.114,28540.0,28539.0,0.001]
[1680313810621,0.027,28540.0,28539.0,0.001]
[1680313812316,0.027,28540.0,28539.0,0.051]
[1680313812518,0.027,28540.0,28539.0,0.001]
[1680313817728,0.027,28540.0,28539.0,0.3017]
[1680313818927,0.025,28540.0,28539.0,0.3889]
[1680313819334,0.02484272,28540.0,28539.0,0.44144711]
[1680313819534,0.02466144,28540.0,28539.0,0.44144711]
[1680313819928,0.0245005,28540.0,28539.0,0.44144711]
[1680313820128,0.02435076,28540.0,28539.0,0.44144711]
[1680313820333,0.02419785,28540.0,28539.0,0.44144711]
[1680313820528,0.0240443,28540.0,28539.0,0.44144711]
[1680313820936,0.02391674,28540.0,28539.0,0.44144711]
[1680313821137,0.02374619,28540.0,28539.0,0.50381881]
[1680313821338,0.02361822,28540.0,28539.0,0.50381881]
[1680313821539,0.02347042,28540.0,28539.0,0.50381881]
[1680313821938,0.02332377,28540.0,28539.0,0.50381881]
[1680313822141,0.02315673,28540.0,28539.0,0.50381881]
[1680313822343,0.02303156,28540.0,28539.0,0.50381881]
[1680313822734,0.02286198,28540.0,28539.0,0.50381881]
[1680313822934,0.02272633,28540.0,28539.0,0.50381881]
[1680313823136,0.02259732,28540.0,28539.0,0.50381881]
[1680313823332,0.02244407,28540.0,28539.0,0.50381881]
[1680313823642,0.02230821,28540.0,28539.0,0.50381881]
[1680313823842,0.02219265,28540.0,28539.0,0.50381881]
[1680313824043,0.02205762,28540.0,28539.0,0.50381881]
[1680313824338,0.021922,28540.0,28539.0,0.50381881]
[1680313824545,0.02176538,28540.0,28539.0,0.50381881]
[1680313824843,0.02163098,28540.0,28539.0,0.50381881]
[1680313825144,0.02150822,28540.0,28539.0,0.45381881]
[1680313825344,0.02136796,28540.0,28539.0,0.45381881]
[1680313825641,0.02123877,28540.0,28539.0,0.45381881]
[1680313825844,0.02110954,28540.0,28539.0,0.45381881]
[1680313826037,0.02098338,28540.0,28539.0,0.45381881]
[1680313826342,0.02087651,28540.0,28539.0,0.45381881]
[1680313826540,0.02074405,28540.0,28539.0,0.45381881]
[1680313826938,0.02062169,28540.0,28539.0,0.45381881]
[1680313827138,0.02047937,28540.0,28539.0,0.45381881]
[1680313827339,0.02035608,28540.0,28539.0,0.45381881]
[1680313827539,0.02023179,28540.0,28539.0,0.45381881]
[1680313827747,0.02023179,28540.0,28539.0,0.45411881]
[1680313827940,0.0201148,28540.0,28539.0,0.45411881]
[1680313829333,0.0201148,28540.0,28539.0,0.45431881]
[1680313829535,0.01998327,28540.0,28539.0,0.45431881]
[1680313829844,0.01985286,28540.0,28539.0,0.45431881]
[1680313830042,0.01973588,28540.0,28539.0,0.45366615]
[1680313830541,0.01949941,28540.0,28539.0,0.45366615]
[1680313830843,0.01938373,28540.0,28539.0,0.50366615]
[1680313831233,0.01926895,28540.0,28539.0,0.50366615]
[1680313831432,0.01917015,28540.0,28539.0,0.50366615]
[1680313831636,0.01905647,28540.0,28539.0,0.50366615]
[1680313831840,0.01894227,28540.0,28539.0,0.20296615]
[1680313832143,0.01894227,28540.0,28539.0,0.75436615]
[1680313832338,0.01880417,28540.0,28539.0,0.75436615]
[1680313832537,0.01869601,28540.0,28539.0,0.75436615]
[1680313832841,0.01858008,28540.0,28539.0,0.75436615]
[1680313833037,0.01847179,28540.0,28539.0,0.75436615]
[1680313833439,0.01835899,28540.0,28539.0,0.75436615]
[1680313833634,0.01825017,28540.0,28539.0,0.75436615]
[1680313833843,0.01815662,28540.0,28539.0,0.75436615]
[1680313834043,0.01804806,28540.0,28539.0,0.75436615]
[1680313834446,0.01794078,28540.0,28539.0,0.75436615]
[1680313834745,0.01783476,28540.0,28539.0,0.75436615]
[1680313834937,0.01771726,28540.0,28539.0,0.75436615]
[1680313835135,0.01761297,28540.0,28539.0,0.75436615]
[1680313835350,0.01750239,28540.0,28539.0,0.75436615]
[1680313835548,0.01739852,28540.0,28539.0,0.75436615]
[1680313835849,0.01729751,28540.0,28539.0,0.75436615]
[1680313836154,0.0171928,28540.0,28539.0,0.75436615]
[1680313836450,0.01711116,28540.0,28539.0,0.75436615]
[1680313836644,0.01701116,28540.0,28539.0,0.75436615]
[1680313836843,0.01691114,28540.0,28539.0,0.75436615]
[1680313837041,0.01681151,28540.0,28539.0,0.75436615]
[1680313837441,0.01671266,28540.0,28539.0,0.75436615]
[1680313837647,0.01660136,28540.0,28539.0,0.69199445]
[1680313837846,0.01650687,28540.0,28539.0,0.69199445]
[1680313838251,0.01640813,28540.0,28539.0,0.69199445]
[1680313838443,0.01632727,28540.0,28539.0,0.77515672]
[1680313838643,0.0877,28546.0,28540.0,0.05]
[1680313838945,0.0877,28546.0,28545.0,0.6014]
[1680313839849,0.0907,28546.0,28545.0,0.6014]
[1680313840749,0.0907,28546.0,28545.0,0.6034]
[1680313841746,0.003,28546.0,28545.0,0.6905]
[1680313842052,0.00281791,28546.0,28545.0,0.69341344]
[1680313842558,0.0024336,28546.0,28545.0,0.69341344]
[1680313842951,0.00224882,28546.0,28545.0,0.69341344]
[1680313843250,0.00207612,28546.0,28545.0,0.69341344]
[1680313843454,0.00189775,28546.0,28545.0,0.60631344]
[1680313843647,0.00172288,28546.0,28545.0,0.60631344]
[1680313843843,0.00158174,28546.0,28545.0,0.60631344]
[1680313844046,0.00140799,28546.0,28545.0,0.60631344]
[1680313844452,0.00124376,28546.0,28545.0,0.60631344]
[1680313844646,0.00107471,28546.0,28545.0,0.60631344]
[1680313844847,0.00090765,28546.0,28545.0,0.60631344]
[1680313845151,0.00073991,28546.0,28545.0,0.60631344]
[1680313845353,0.00055903,28546.0,28545.0,0.60631344]
[1680313845551,0.0877,28548.0,28545.0,0.60631344]
[1680313845751,0.0877,28548.0,28546.0,0.05]
[1680313846150,0.0877,28548.0,28545.0,0.6034]
[1680313846349,0.0877,28548.0,28546.0,0.05]
[1680313846753,0.0877,28548.0,28545.0,0.6034]
[1680313846955,0.0877,28548.0,28546.0,0.052]
[1680313847255,0.05,28554.0,28546.0,0.139]
[1680313847256,0.0875,28549.0,28546.0,0.139]
[1680313847447,0.0875,28549.0,28548.0,0.3007]
[1680313848449,0.0885,28549.0,28548.0,0.3027]
[1680313849950,0.0885,28549.0,28548.0,0.30530863]
[1680313851555,0.0885,28549.0,28548.0,0.30330863]
[1680313851855,0.0885,28549.0,28548.0,0.30430863]
[1680313858964,0.0885,28549.0,28548.0,0.00360863]
[1680313859163,0.0885,28549.0,28548.0,0.60500863]
[1680313861864,0.0885,28549.0,28548.0,0.30430863]
[1680313862069,0.1762,28549.0,28548.0,0.00360863]
[1680313862464,0.1762,28549.0,28544.0,0.3007]
[1680313862766,0.001,28549.0,28548.0,0.00176787]
[1680313863073,0.001,28549.0,28547.0,0.3007]
[1680313863074,0.05,28548.0,28547.0,0.3007]
[1680313863272,0.2252,28548.0,28547.0,0.3007]
[1680313864068,0.2262,28548.0,28547.0,0.3007]
[1680313865971,0.2262,28548.0,28547.0,0.3027]
[1680313874770,0.6848,28546.0,28541.0,0.3423253]
[1680313874970,0.1752,28542.0,28540.0,0.3727253]
[1680313875165,0.0876,28541.0,28540.0,0.0416253]
[1680313875771,0.0876,28541.0,28540.0,0.0426253]
[1680313876371,0.0906,28541.0,28540.0,0.0416253]
[1680313877574,0.05,28540.0,28536.0,0.06247378]
[1680313877772,0.087,28537.0,28536.0,0.06247378]
[1680313878178,0.087,28537.0,28535.0,0.36317378]
[1680313878379,0.0877,28536.0,28535.0,0.36319102]
[1680313878679,0.0877,28536.0,28535.0,0.36316713]
[1680313879373,0.0877,28536.0,28535.0,0.38916713]
[1680313879775,0.0877,28536.0,28535.0,0.36316713]
[1680313880572,0.0877,28536.0,28535.0,0.3007]
[1680313880778,0.0877,28536.0,28535.0,0.36316713]
[1680313880973,0.0877,28536.0,28535.0,0.3007]
[1680313881172,0.1754,28536.0,28535.0,0.3007]
[1680313884876,0.1754,28536.0,28531.0,0.36606713]
[1680313885081,0.0875,28532.0,28531.0,0.3007]
[1680313885981,0.0875,28532.0,28530.0,0.08329838]
[1680313886181,0.05,28533.0,28531.0,0.06242016]
[1680313886384,0.087,28532.0,28531.0,0.3007]
[1680313887291,0.087,28532.0,28531.0,0.3267]
[1680313887587,0.087,28532.0,28531.0,0.3891012]
[1680313887790,0.087,28532.0,28531.0,0.38909957]
[1680313887988,0.087,28532.0,28531.0,0.3267]
[1680313888286,0.087,28532.0,28531.0,0.38909499]
[1680313889588,0.087,28532.0,28531.0,0.38908292]
[1680313895488,0.087,28532.0,28531.0,0.3267]
[1680313896397,0.087,28532.0,28531.0,0.38906767]
[1680313896803,0.0877,28537.0,28531.0,0.4144]
[1680313896985,0.0877,28537.0,28536.0,0.3007]
[1680313897191,0.0876,28539.0,28536.0,0.3007]
[1680313897396,0.0876,28539.0,28537.0,0.05]
[1680313897996,0.0876,28539.0,28536.0,0.3507]
[1680313898389,0.0906,28539.0,28537.0,0.052]
[1680313898994,0.0906,28539.0,28537.0,0.002]
[1680313899489,0.0906,28539.0,28536.0,0.3527]
[1680313900097,0.0906,28539.0,28536.0,0.3027]
[1680313900297,0.0906,28539.0,28537.0,0.002]
[1680313900786,0.0906,28539.0,28536.0,0.3027]
[1680313901191,0.0906,28539.0,28537.0,0.001]
[1680313901391,0.0906,28539.0,28537.0,0.051]
[1680313901594,0.0886,28546.0,28538.0,0.3882]
[1680313901890,0.0876,28547.0,28543.0,0.6889]
[1680313902091,0.0876,28547.0,28546.0,0.3007]
[1680313902393,0.1747,28547.0,28546.0,0.3007]
[1680313902587,0.1747,28547.0,28544.0,0.00215776]
[1680313902797,0.0871,28545.0,28544.0,0.00215776]
[1680313903292,0.0871,28545.0,28544.0,0.30285776]
[1680313903487,0.0875,28545.0,28544.0,0.30285776]
[1680313904997,0.0875,28545.0,28544.0,0.30985776]
[1680313906006,0.0875,28545.0,28544.0,0.31585776]
[1680313906193,0.0875,28545.0,28544.0,0.36585776]
[1680313906398,0.0871,28548.0,28544.0,0.45285776]
[1680313906602,0.0871,28548.0,28547.0,0.3007]
[1680313906998,0.3007,28556.0,28547.0,0.4756]
[1680313906999,0.3884,28556.0,28547.0,0.4756]
[1680313907201,0.0877,28556.0,28553.0,0.3007]
[1680313907796,0.0877,28556.0,28552.0,0.0872]
[1680313908500,0.0877,28556.0,28553.0,0.002]
[1680313908897,0.0877,28556.0,28554.0,0.3007]
[1680313909701,0.0877,28556.0,28553.0,0.002]
[1680313909999,0.0877,28556.0,28554.0,0.3007]
[1680313910700,0.0877,28556.0,28554.0,0.3027]
[1680313914201,0.0877,28556.0,28555.0,0.00371049]
[1680313914398,0.0877,28556.0,28554.0,0.3027]
[1680313914598,0.3007,28559.0,28555.0,0.1377]
[1680313914798,0.3007,28559.0,28556.0,0.0872]
[1680313917001,0.3007,28559.0,28556.0,0.0892]
[1680313917203,0.3882,28559.0,28556.0,0.002]
[1680313918101,0.05,28558.0,28556.0,0.002]
[1680313920205,0.0875,28557.0,28556.0,0.002]
[1680313921303,0.0875,28557.0,28554.0,0.3007]
[1680313921507,0.0875,28557.0,28556.0,0.002]
[1680313922411,0.3007,28565.0,28556.0,0.0897]
[1680313922607,0.05,28564.0,28559.0,0.3007]
[1680313922904,0.087,28561.0,28559.0,0.3007]
[1680313923307,0.087,28561.0,28557.0,0.0871]
[1680313923611,0.087,28561.0,28559.0,0.002]
[1680313925106,0.1371,28560.0,28559.0,0.002]
[1680313925603,0.0871,28560.0,28559.0,0.002]
[1680313927203,0.087,28560.0,28559.0,0.002]
[1680313927404,0.1375,28564.0,28559.0,0.0897]
[1680313927606,0.1375,28564.0,28560.0,0.3007]
[1680313927800,0.0875,28564.0,28560.0,0.3007]
[1680313928909,0.0875,28564.0,28560.0,0.3027]
[1680313929208,0.0875,28564.0,28561.0,0.05528767]
[1680313929408,0.6303,28571.0,28563.0,0.3007]
[1680313929409,0.0875,28566.0,28563.0,0.3007]
[1680313929610,0.1376,28570.0,28565.0,0.087]
[1680313929916,0.1376,28570.0,28569.0,0.3007]
[1680313930112,0.0876,28570.0,28569.0,0.3007]
[1680313930312,0.0875,28575.0,28569.0,0.3884]
[1680313930511,0.3007,28578.0,28572.0,0.3007]
[1680313930715,0.05,28574.0,28571.0,0.0877]
[1680313930914,0.0877,28575.0,28571.0,0.0877]
[1680313931811,0.05,28574.0,28571.0,0.0877]
[1680313932316,0.0875,28572.0,28571.0,0.002]
[1680313933012,0.1375,28572.0,28571.0,0.004]
[1680313933713,0.087,28574.0,28571.0,0.004]
[1680313933920,0.087,28574.0,28572.0,0.3007]
[1680313934328,0.3007,28580.0,28573.0,0.0874]
[1680313934329,0.087,28577.0,28573.0,0.0874]
[1680313934527,0.05,28580.0,28576.0,0.0877]
[1680313934823,0.4,28581.0,28578.0,0.0877]
[1680313935220,0.05,28580.0,28578.0,0.0877]
[1680313935624,0.3882,28584.0,28579.0,0.087]
[1680313935819,0.3882,28584.0,28581.0,0.3007]
[1680313936019,0.3882,28584.0,28581.0,0.30054751]
[1680313937020,0.3007,28584.0,28581.0,0.30054751]
[1680313937728,0.7877,28587.0,28583.0,0.0871]
[1680313937928,0.087,28587.0,28584.0,0.05]
[1680313938126,0.3007,28591.0,28586.0,0.0875]
[1680313938329,0.0876,28592.0,28588.0,0.0871]
[1680313938726,0.0876,28589.0,28585.0,0.0872]
[1680313938934,0.0876,28586.0,28583.0,0.002]
[1680313939226,0.0876,28586.0,28582.0,0.0877]
[1680313939427,0.0877,28589.0,28585.0,0.3879]
[1680313940329,0.0877,28589.0,28585.0,0.3899]
[1680313940719,0.3007,28588.0,28585.0,0.3899]
[1680313941827,0.0877,28589.0,28585.0,0.3899]
[1680313942731,0.0877,28589.0,28586.0,0.05]
[1680313942933,0.0876,28592.0,28588.0,0.3879]
[1680313943229,0.0876,28592.0,28589.0,0.05]
[1680313943433,0.0876,28592.0,28588.0,0.3879]
[1680313944332,0.0876,28592.0,28589.0,0.01107905]
[1680313945233,0.0876,28592.0,28589.0,0.01307905]
[1680313947537,0.0876,28592.0,28591.0,0.3007]
[1680313948130,0.3007,28597.0,28591.0,0.3007]
[1680313948527,0.05,28596.0,28591.0,0.3007]
[1680313948729,0.087,28594.0,28590.0,0.0872]
[1680313949937,0.087,28594.0,28591.0,0.002]
[1680313950328,0.087,28594.0,28590.0,0.0872]
[1680313950329,0.087,28594.0,28590.0,0.0892]
[1680313950832,0.087,28594.0,28591.0,0.3027]
[1680313951433,0.087,28594.0,28591.0,0.3007]
[1680313952031,0.3877,28594.0,28591.0,0.3007]
[1680313952236,0.3877,28594.0,28590.0,0.0892]
[1680313952733,0.05,28593.0,28590.0,0.0892]
[1680313952931,0.3877,28594.0,28590.0,0.0892]
[1680313952932,0.3877,28594.0,28591.0,0.002]
[1680313953734,0.087,28594.0,28591.0,0.052]
[1680313953937,0.087,28594.0,28591.0,0.3507]
[1680313954440,0.115,28600.0,28593.0,0.0875]
[1680313954639,0.115,28600.0,28591.0,0.6534]
[1680313954640,0.115,28600.0,28598.0,0.087]
[1680313955033,0.0875,28599.0,28595.0,0.0871]
[1680313955229,0.115,28600.0,28591.0,0.3027]
[1680313955230,0.1754,28596.0,28591.0,0.002]
[1680313955435,0.0875,28592.0,28591.0,0.002]
[1680313955643,0.1375,28592.0,28591.0,0.002]
[1680313955830,0.1375,28592.0,28589.0,0.01107905]
[1680313956036,0.0871,28590.0,28589.0,0.01107905]
[1680313956345,0.0871,28590.0,28588.0,0.3007]
[1680313956544,0.3884,28593.0,28588.0,0.3007]
[1680313956545,0.3007,28593.0,28588.0,0.3007]
[1680313956837,0.05,28597.0,28588.0,0.3877]
[1680313957030,0.3007,28595.0,28589.0,0.007]
[1680313957236,0.087,28592.0,28589.0,0.007]
[1680313957540,0.087,28592.0,28588.0,0.088]
[1680313957940,0.05,28591.0,28588.0,0.088]
[1680313958137,0.0871,28589.0,28588.0,0.001]
[1680313958435,0.0871,28589.0,28585.0,0.3879]
[1680313959031,0.0871,28589.0,28588.0,0.001]
[1680313959436,0.0871,28589.0,28586.0,0.00996974]
[1680313959639,0.087,28587.0,28586.0,0.00996974]
[1680313961341,0.087,28587.0,28586.0,0.01096974]
[1680313961644,0.087,28587.0,28586.0,0.01196974]
[1680313962446,0.087,28590.0,28586.0,0.09946974]
[1680313963140,0.0875,28587.0,28586.0,0.01196974]
[1680313964547,0.0875,28587.0,28586.0,0.01096974]
[1680313965045,0.0875,28587.0,28586.0,0.01196974]
[1680313965445,0.0877,28590.0,28586.0,0.09966974]
[1680313966046,0.087,28588.0,28586.0,0.01196974]
[1680313967842,0.05,28587.0,28586.0,0.00996974]
[1680313968146,0.1377,28587.0,28586.0,0.01196974]
[1680313968540,0.05,28586.0,28585.0,0.3007]
[1680313968739,0.2245,28586.0,28585.0,0.3007]
[1680313969142,0.2245,28586.0,28582.0,0.3007]
[1680313969349,0.0875,28583.0,28579.0,0.3092]
[1680313969646,0.0871,28580.0,28577.0,0.3007]
[1680313970043,0.087,28578.0,28577.0,0.3007]
[1680313970241,0.087,28578.0,28574.0,0.0877]
[1680313970548,0.087,28578.0,28573.0,0.73642692]
[1680313970549,0.0871,28580.0,28576.0,0.3007]
[1680313970749,0.0875,28577.0,28576.0,0.3007]
[1680313972246,0.1752,28577.0,28576.0,0.3007]
[1680313972439,0.1752,28577.0,28573.0,0.3007]
[1680313972641,0.0875,28574.0,28573.0,0.3007]
[1680313972945,0.1752,28574.0,28573.0,0.3007]
[1680313973146,0.3333,28572.0,28568.0,0.3007]
[1680313973345,0.0876,28569.0,28568.0,0.3007]
[1680313974046,0.0876,28569.0,28568.0,0.3287]
[1680313976150,0.0876,28569.0,28568.0,0.33149497]
[1680313976448,0.3007,28580.0,28568.0,0.33149497]
[1680313976752,0.26227945,28593.0,28579.0,0.3007]
[1680313976753,0.3007,28584.0,28579.0,0.3007]
[1680313976945,0.1752,28580.0,28576.0,0.3007]